bitfinex/quotes_SOLUSD_20251030
["timestamp","ask_amount","ask_price","bid_price","bid_amount"]
[1761842069573,6.24671169,185.66,185.61,32.19632347]
[1761842069780,0.71,185.65,185.61,25.97961178]
[1761842070009,6.24671169,185.65,185.61,61.7]
[1761842070301,6.24671169,185.65,185.6,67.08789715]
[1761842070601,6.24671169,185.65,185.6,73.30460884]
[1761842070796,0.71,185.65,185.6,73.30460884]
[1761842070974,0.28432314,185.66,185.6,72.62460884]
[1761842071179,11.12,185.67,185.64,5.38677009]
[1761842071393,11.12,185.67,185.64,67.08677009]
[1761842071605,11.12,185.67,185.64,73.30348178]
[1761842071805,11.12,185.67,185.64,72.62348178]
[1761842072024,22.95214405,185.69,185.64,72.62348178]
[1761842072204,17.41537472,185.69,185.64,73.30348178]
[1761842072414,16.70537472,185.69,185.64,73.30348178]
[1761842072626,11.32,185.69,185.65,6.21671169]
[1761842072821,11.32,185.69,185.65,0.68]
[1761842073020,11.32,185.69,185.65,6.21671169]
[1761842073532,11.32,185.69,185.65,11.60309398]
[1761842073900,17.41537049,185.69,185.65,6.21671169]
[1761842074099,17.41537049,185.69,185.65,5.53671169]
[1761842074500,12.03,185.69,185.65,11.60316696]
[1761842074717,11.32,185.69,185.66,0.68]
[1761842074909,11.32,185.69,185.66,67.91671169]
[1761842075214,0.2,185.69,185.67,5.53671169]
[1761842075412,0.2,185.69,185.68,5.38560965]
[1761842076208,0.2,185.69,185.67,6.21671169]
[1761842076209,0.2,185.69,185.67,11.60252929]
[1761842077720,0.2,185.69,185.67,72.62252929]
[1761842077921,0.2,185.69,185.68,0.68]
[1761842078319,0.2,185.69,185.67,72.62252929]
[1761842078713,0.2,185.69,185.67,73.30252929]
[1761842079653,0.2,185.69,185.68,6.03560965]
[1761842080513,0.2,185.69,185.68,11.57232134]
[1761842080843,0.2,185.69,185.68,84.39232134]
[1761842081643,0.2,185.69,185.68,94.18114903]
[1761842081814,0.2,185.69,185.68,78.85560965]
[1761842082132,0.2,185.69,185.68,87.67760965]
[1761842082633,0.2,185.69,185.68,93.21432134]
[1761842082834,0.2,185.69,185.68,93.86432134]
[1761842083046,0.2,185.69,185.68,82.292]
[1761842083205,0.2,185.69,185.68,61.7]
[1761842083707,0.2,185.69,185.68,67.08560965]
[1761842084206,0.2,185.69,185.68,61.7]
[1761842085006,0.2,185.69,185.68,67.08560965]
[1761842085515,0.2,185.69,185.68,5.38560965]
[1761842086019,0.2,185.69,185.68,5.53671169]
[1761842086319,43.83827134,185.78,185.68,5.53671169]
[1761842086320,5.38291386,185.78,185.71,20.592]
[1761842086522,4.02168699,185.77,185.74,5.53671169]
[1761842086830,9.40468781,185.77,185.72,6.18671169]
[1761842087126,0.69,185.75,185.72,5.53671169]
[1761842087907,0.69,185.75,185.72,10.92108125]
[1761842088128,0.69,185.75,185.71,87.67668413]
[1761842088323,6.22671169,185.75,185.71,87.67668413]
[1761842088522,11.61036874,185.75,185.71,82.292]
[1761842088729,0.69,185.74,185.71,82.292]
[1761842088924,0.69,185.74,185.71,61.7]
[1761842089124,5.53671169,185.73,185.71,61.7]
[1761842089645,0.69,185.72,185.71,61.7]
[1761842089817,0.69,185.72,185.68,98.94871169]
[1761842090131,0.69,185.72,185.68,104.33424767]
[1761842090509,11.61116472,185.72,185.68,82.292]
[1761842090711,5.38445303,185.72,185.68,82.292]
[1761842090911,6.51103483,185.71,185.68,20.592]
[1761842091124,0.69,185.7,185.68,20.592]
[1761842092832,8.24928881,185.7,185.65,39.27253214]
[1761842093010,8.24928881,185.7,185.65,101.62253214]
[1761842093212,7.55928881,185.7,185.65,100.97253214]
[1761842093412,0.69,185.69,185.65,100.97253214]
[1761842093828,0.69,185.69,185.65,101.62253214]
[1761842094141,0.69,185.69,185.65,100.97253214]
[1761842094812,8.24949649,185.69,185.65,61.7]
[1761842095116,0.28432314,185.65,185.57,0.65]
[1761842095422,0.28432314,185.65,185.56,7.56323468]
[1761842095423,2.17414221,185.62,185.56,7.56323468]
[1761842095636,2.45846535,185.62,185.56,8.21323468]
[1761842096036,2.86414221,185.61,185.56,21.03596587]
[1761842096216,2.86414221,185.61,185.56,7.56323468]
[1761842096417,2.86414221,185.61,185.49,8.69656884]
[1761842096418,2.17414221,185.59,185.52,0.65]
[1761842096719,2.17414221,185.57,185.53,20.592]
[1761842096915,2.17414221,185.57,185.54,20.592]
[1761842097116,0.69,185.57,185.54,20.592]
[1761842097558,0.69,185.57,185.55,20.592]
[1761842098642,5.54386984,185.58,185.55,20.592]
[1761842098837,6.23386984,185.58,185.55,20.592]
[1761842099051,5.54386984,185.56,185.44,50.0]
[1761842099232,20.592,185.52,185.41,0.65]
[1761842099561,5.54386984,185.46,185.34,16.08093444]
[1761842099730,5.54386984,185.44,185.36,5.54386984]
[1761842099930,5.54386984,185.44,185.37,11.14]
[1761842100250,5.54386984,185.46,185.38,5.54386984]
[1761842100425,5.54386984,185.46,185.39,30.03911968]
[1761842100745,0.28432314,185.48,185.39,30.68911968]
[1761842101056,15.65708135,185.5,185.42,26.13586984]
[1761842101057,0.28432314,185.5,185.42,26.13586984]
[1761842101266,0.28432314,185.5,185.43,11.81]
[1761842101464,0.28432314,185.5,185.44,0.65]
[1761842102062,11.16,185.52,185.46,20.592]
[1761842102063,19.59036325,185.52,185.46,20.592]
[1761842102238,4.48774497,185.62,185.47,8.43036325]
[1761842102562,5.98794398,185.6,185.51,5.39054498]
[1761842102763,8.43036325,185.58,185.51,18.86690744]
[1761842102938,8.43036325,185.58,185.52,0.65]
[1761842103338,8.43036325,185.54,185.49,0.65]
[1761842103546,0.6,185.57,185.47,20.592]
[1761842103547,0.14216157,185.55,185.47,20.592]
[1761842103768,8.43036325,185.52,185.47,20.592]
[1761842104147,8.43036325,185.52,185.48,20.592]
[1761842104355,0.88432314,185.55,185.48,20.592]
[1761842104356,0.6,185.55,185.48,20.592]
[1761842104560,0.28432314,185.53,185.49,0.65]
[1761842104763,8.71468639,185.53,185.49,0.65]
[1761842105165,8.43036325,185.52,185.48,20.592]
[1761842105472,8.71468639,185.53,185.49,0.65]
[1761842105672,8.43036325,185.56,185.49,9.08036325]
[1761842105870,8.43036325,185.57,185.5,8.43036325]
[1761842106085,11.18,185.59,185.54,8.43036325]
[1761842106243,24.99743382,185.63,185.56,8.43036325]
[1761842106444,8.71468639,185.62,185.56,0.65]
[1761842106666,8.43036325,185.6,185.53,40.85236325]
[1761842106865,8.43036325,185.61,185.54,13.81990682]
[1761842107143,19.61036325,185.63,185.56,8.43036325]
[1761842107573,19.61036325,185.63,185.57,8.43036325]
[1761842107866,0.28432314,185.61,185.56,9.08036325]
[1761842108072,0.28432314,185.61,185.53,37.16189473]
[1761842108245,8.43036325,185.6,185.54,8.43036325]
[1761842108568,0.88432314,185.61,185.54,14.46980414]
[1761842108792,8.43036325,185.6,185.54,14.46980414]
[1761842109148,14.7023712,185.61,185.55,8.43036325]
[1761842109350,8.43036325,185.59,185.54,5.38944089]
[1761842109545,8.43036325,185.59,185.53,29.02236325]
[1761842109740,8.43036325,185.54,185.48,9.14036325]
[1761842109945,8.43036325,185.5,185.46,0.71]
[1761842110146,8.43036325,185.5,185.47,20.592]
[1761842110873,0.28432314,185.52,185.45,0.71]
[1761842110874,8.43036325,185.49,185.45,0.71]
[1761842111471,8.43036325,185.49,185.45,62.41]
[1761842111642,11.18,185.53,185.48,8.43036325]
[1761842111838,19.61036325,185.53,185.47,8.43036325]
[1761842112045,19.61036325,185.53,185.47,9.14036325]
[1761842112249,8.43036325,185.52,185.47,0.71]
[1761842112450,8.43036325,185.5,185.45,67.09228202]
[1761842112650,8.71468639,185.51,185.46,0.71]
[1761842113258,8.43036325,185.5,185.46,0.71]
[1761842113457,8.43036325,185.49,185.45,61.7]
[1761842113652,8.43036325,185.48,185.45,61.7]
[1761842113853,8.43036325,185.48,185.44,82.292]
[1761842114072,8.43036325,185.49,185.44,83.002]
[1761842114244,8.43036325,185.47,185.45,20.592]
[1761842114443,8.43036325,185.47,185.43,25.98486699]
[1761842114674,8.43036325,185.47,185.43,26.69486699]
[1761842114871,11.18,185.53,185.44,9.12036325]
[1761842115169,8.43036325,185.51,185.45,8.43036325]
[1761842115341,0.28432314,185.52,185.46,8.43036325]
[1761842115547,8.71468639,185.52,185.47,8.43036325]
[1761842115747,8.43036325,185.51,185.46,9.12036325]
[1761842115971,8.43036325,185.51,185.46,0.69]
[1761842116172,8.43036325,185.5,185.43,37.16486699]
[1761842116378,8.43036325,185.48,185.43,20.592]
[1761842116575,8.43036325,185.48,185.43,26.67481395]
[1761842116775,8.43036325,185.48,185.44,0.69]
[1761842116967,0.28432314,185.48,185.44,0.69]
[1761842117367,8.71468639,185.48,185.43,20.592]
[1761842117782,8.43036325,185.46,185.41,0.69]
[1761842117982,8.43036325,185.44,185.37,13.48630623]
[1761842118285,8.43036325,185.43,185.38,6.08432516]
[1761842118482,8.43036325,185.43,185.38,0.69]
[1761842118657,13.82411184,185.4,185.35,0.69]
[1761842118853,8.43036325,185.4,185.35,46.28743941]
[1761842119060,8.43036325,185.41,185.36,0.69]
[1761842119281,0.28432314,185.4,185.35,29.02236325]
[1761842119463,8.71468639,185.4,185.35,25.98718855]
[1761842119784,8.71468639,185.4,185.35,26.67718855]
[1761842120119,8.71468639,185.4,185.35,6.08518855]
[1761842120382,8.71468639,185.4,185.37,20.592]
[1761842120556,0.28432314,185.4,185.37,20.592]
[1761842120756,0.28432314,185.4,185.38,0.69]
[1761842120985,0.28432314,185.4,185.37,26.67659388]
[1761842121484,8.43036325,185.45,185.39,8.43036325]
[1761842121684,11.18,185.45,185.41,8.43036325]
[1761842121894,11.18,185.45,185.38,0.69]
[1761842121895,11.18,185.45,185.43,8.43036325]
[1761842122060,11.18,185.49,185.44,8.43036325]
[1761842122259,11.18,185.49,185.4,20.592]
[1761842122260,11.18,185.49,185.46,8.43036325]
[1761842122567,11.18,185.49,185.46,13.82231204]
[1761842122771,5.98880206,185.57,185.48,8.43036325]
[1761842123091,11.2,185.57,185.52,8.43036325]
[1761842123455,11.2,185.57,185.52,9.12036325]
[1761842123669,19.63036325,185.57,185.52,9.12036325]
[1761842124616,19.63036325,185.57,185.48,24.67834954]
[1761842124617,8.71468639,185.56,185.48,24.67834954]
[1761842124768,8.43036325,185.55,185.49,8.43036325]
[1761842124973,8.43036325,185.53,185.48,21.282]
[1761842125267,8.71468639,185.49,185.44,0.69]
[1761842125490,8.43036325,185.47,185.42,20.32036325]
[1761842125971,8.43036325,185.46,185.41,5.39345234]
[1761842126174,8.43036325,185.47,185.42,9.12036325]
[1761842126376,0.28432314,185.47,185.42,9.12036325]
[1761842126581,0.28432314,185.47,185.43,6.082865]
[1761842126917,8.43036325,185.49,185.44,8.43036325]
[1761842127203,8.43036325,185.49,185.45,0.69]
[1761842127406,8.71468639,185.48,185.42,8.43036325]
[1761842128014,11.2,185.52,185.47,8.43036325]
[1761842128189,8.43036325,185.54,185.49,8.43036325]
[1761842128385,0.14216157,185.53,185.49,8.43036325]
[1761842128583,14.42019443,185.54,185.49,8.43036325]
[1761842128898,8.43036325,185.54,185.49,8.43036325]
[1761842129102,5.38942448,185.55,185.5,9.12036325]
[1761842129103,13.81978773,185.55,185.5,9.12036325]
[1761842129296,13.81978773,185.55,185.5,8.43036325]
[1761842129600,8.43036325,185.54,185.48,8.43036325]
[1761842129779,8.43036325,185.54,185.49,8.43036325]
[1761842129981,5.38942448,185.55,185.49,8.43036325]
[1761842130193,8.43036325,185.54,185.49,8.43036325]
[1761842130705,13.82019096,185.54,185.49,9.12036325]
[1761842131112,8.43036325,185.54,185.5,0.69]
[1761842131292,13.82004293,185.54,185.5,0.69]
[1761842131496,13.82004293,185.54,185.48,8.43036325]
[1761842131694,8.43036325,185.52,185.48,20.592]
[1761842131990,5.38967968,185.54,185.48,20.592]
[1761842131991,8.43036325,185.53,185.48,20.592]
[1761842132306,13.82004293,185.54,185.49,0.69]
[1761842132813,8.43036325,185.52,185.48,20.592]
[1761842133013,8.43036325,185.54,185.49,8.43036325]
[1761842133192,8.43036325,185.54,185.49,9.12036325]
[1761842133398,8.43036325,185.54,185.5,0.69]
[1761842134313,8.43036325,185.55,185.5,6.08082037]
[1761842134511,19.63036325,185.56,185.51,8.43036325]
[1761842134709,19.63036325,185.56,185.5,6.08082037]
[1761842134710,11.2,185.56,185.5,6.08082037]
[1761842134912,19.63036325,185.56,185.51,8.43036325]
[1761842135114,19.63036325,185.56,185.51,0.69]
[1761842135298,19.63036325,185.56,185.52,0.69]
[1761842135909,25.01947486,185.56,185.52,0.69]
[1761842136213,11.2,185.56,185.53,0.69]
[1761842136817,11.2,185.56,185.53,67.77995998]
[1761842137417,11.2,185.56,185.53,62.39]
[1761842138224,25.01951664,185.56,185.53,61.7]
[1761842138521,8.43036325,185.55,185.53,61.7]
[1761842139002,8.43036325,185.54,185.53,61.7]
[1761842139400,10.07315083,185.53,185.43,0.67]
[1761842139606,8.43036325,185.47,185.43,0.67]
[1761842139816,8.43036325,185.47,185.41,14.49374393]
[1761842140020,8.43036325,185.47,185.41,13.82374393]
[1761842140327,13.82217183,185.47,185.42,14.49348113]
[1761842140489,17.43072226,185.47,185.42,6.06311788]
[1761842140690,17.43072226,185.47,185.43,0.67]
[1761842140904,17.43072226,185.47,185.42,5.39311788]
[1761842140905,8.43036325,185.46,185.42,6.06311788]
[1761842141101,12.03891368,185.47,185.43,0.67]
[1761842141519,12.03891368,185.46,185.41,29.02236325]
[1761842141695,12.03891368,185.46,185.41,35.08568558]
[1761842141892,3.60855043,185.45,185.42,0.67]
[1761842142097,8.43036325,185.46,185.42,0.67]
[1761842142098,12.03891368,185.46,185.42,0.67]
[1761842142502,3.60855043,185.47,185.44,8.43036325]
[1761842142693,9.80855043,185.48,185.45,0.67]
[1761842143204,9.80855043,185.48,185.46,8.43036325]
[1761842143401,19.63036325,185.52,185.47,8.43036325]
[1761842143813,19.63036325,185.52,185.48,0.67]
[1761842144121,4.01865886,185.51,185.48,0.67]
[1761842144322,19.63036325,185.52,185.47,8.43036325]
[1761842144497,5.39054498,185.51,185.47,9.10036325]
[1761842144694,8.43036325,185.5,185.44,20.30036325]
[1761842144916,8.43036325,185.5,185.44,78.29257146]
[1761842145127,8.43036325,185.5,185.45,0.67]
[1761842145324,8.43036325,185.5,185.45,9.10036325]
[1761842145692,8.43036325,185.5,185.46,0.67]
[1761842147015,13.82135229,185.5,185.46,0.67]
[1761842147919,8.43036325,185.5,185.46,6.0619807]
[1761842148326,13.82128955,185.5,185.46,0.67]
[1761842148834,8.43036325,185.49,185.46,0.67]
[1761842149014,5.39054498,185.51,185.43,0.67]
[1761842149015,8.43036325,185.47,185.43,0.67]
[1761842149334,0.14216157,185.43,185.36,0.67]
[1761842149513,8.43036325,185.41,185.36,9.10036325]
[1761842149712,8.43036325,185.41,185.37,0.67]
[1761842149928,19.61036325,185.42,185.37,9.10036325]
[1761842150150,8.43036325,185.41,185.37,0.67]
[1761842150313,8.43036325,185.41,185.38,0.67]
[1761842150634,11.18,185.42,185.38,0.67]
[1761842150820,8.43036325,185.44,185.38,6.06421048]
[1761842151018,11.18,185.45,185.39,8.43036325]
[1761842151335,8.43036325,185.44,185.39,9.10036325]
[1761842151535,8.43036325,185.44,185.4,0.67]
[1761842151723,11.18,185.45,185.4,9.10036325]
[1761842152229,11.18,185.45,185.42,8.43036325]
[1761842152622,19.75252482,185.48,185.43,9.10036325]
[1761842152821,19.75252482,185.48,185.44,8.43036325]
[1761842152822,11.18,185.48,185.44,8.43036325]
[1761842153037,11.18,185.48,185.44,21.262]
[1761842153518,19.61036325,185.48,185.44,21.262]
[1761842153737,25.00182963,185.48,185.44,21.262]
[1761842153973,11.18,185.48,185.45,0.67]
[1761842154162,11.18,185.48,185.45,6.0621684]
[1761842154466,11.18,185.48,185.45,67.7621684]
[1761842154620,0.14216157,185.52,185.46,0.67]
[1761842154621,8.43036325,185.5,185.46,0.67]
[1761842154823,11.18,185.51,185.47,8.43036325]
[1761842155130,25.70268804,185.56,185.49,8.43036325]
[1761842155131,19.61036325,185.54,185.49,8.43036325]
[1761842155336,23.23179591,185.54,185.49,8.43036325]
[1761842155537,23.23179591,185.54,185.5,0.67]
[1761842155736,14.80143266,185.54,185.48,82.292]
[1761842156056,11.18,185.54,185.51,6.06027853]
[1761842156365,8.43036325,185.56,185.51,14.49064178]
[1761842156526,8.43036325,185.56,185.52,0.67]
[1761842157066,11.2,185.57,185.52,0.67]
[1761842157427,8.43036325,185.55,185.52,0.67]
[1761842157626,8.43036325,185.55,185.5,8.43036325]
[1761842157825,8.43036325,185.55,185.51,0.67]
[1761842158152,13.81975071,185.55,185.51,0.67]
[1761842158651,8.43036325,185.55,185.51,6.06051334]
[1761842159463,8.43036325,185.55,185.51,5.39051334]
[1761842159626,8.43036325,185.56,185.52,0.67]
[1761842160253,8.43036325,185.56,185.52,6.06016514]
[1761842160739,8.43036325,185.56,185.52,5.39016514]
[1761842160943,8.43036325,185.56,185.53,0.67]
[1761842161528,5.54443767,185.56,185.53,0.67]
[1761842161730,5.54443767,185.56,185.52,5.39016514]
[1761842162038,16.72443767,185.57,185.53,0.67]
[1761842162237,11.18,185.57,185.54,5.38967338]
[1761842162767,11.18,185.57,185.55,0.67]
[1761842163057,5.38729712,185.63,185.56,5.54443767]
[1761842163259,16.72443767,185.62,185.56,5.54443767]
[1761842163433,16.72443767,185.62,185.56,6.21443767]
[1761842163825,5.54443767,185.61,185.56,0.67]
[1761842164057,5.54443767,185.59,185.54,93.472]
[1761842164233,5.54443767,185.6,185.55,6.21443767]
[1761842164648,5.54443767,185.6,185.56,0.67]
[1761842164856,5.54443767,185.59,185.54,99.68643767]
[1761842165028,5.54443767,185.58,185.54,82.962]
[1761842165229,18.8568233,185.61,185.54,61.7]
[1761842165230,5.54443767,185.55,185.54,61.7]
[1761842165456,5.54443767,185.55,185.48,5.54443767]
[1761842165457,16.72443767,185.55,185.51,0.67]
[1761842165775,5.54443767,185.53,185.48,88.50643767]
[1761842165956,5.54443767,185.53,185.49,0.67]
[1761842166133,11.18,185.55,185.49,0.67]
[1761842166134,11.18,185.55,185.49,6.21443767]
[1761842166328,5.54443767,185.52,185.45,13.48020773]
[1761842166640,5.54443767,185.49,185.47,20.592]
[1761842166851,5.54443767,185.49,185.47,21.262]
[1761842167146,5.54443767,185.49,185.47,0.67]
[1761842167358,5.54443767,185.49,185.47,21.262]
[1761842167947,5.54443767,185.48,185.44,0.67]
[1761842168250,5.54443767,185.47,185.42,26.65491051]
[1761842168447,10.93620485,185.47,185.42,26.65491051]
[1761842168643,5.54443767,185.45,185.42,0.67]
[1761842168827,16.57176718,185.47,185.38,6.06432516]
[1761842168828,5.54443767,185.43,185.38,6.06432516]
[1761842169038,5.54443767,185.4,185.35,11.57662]
[1761842169238,11.18,185.42,185.37,5.54443767]
[1761842169466,5.54443767,185.41,185.36,6.26443767]
[1761842169645,5.54443767,185.45,185.4,20.592]
[1761842169848,16.72443767,185.46,185.41,5.54443767]
[1761842170069,5.54443767,185.47,185.42,5.54443767]
[1761842170372,5.54443767,185.47,185.42,0.72]
[1761842170557,5.54443767,185.45,185.4,21.312]
[1761842171066,5.54443767,185.45,185.41,0.72]
[1761842172681,10.93676614,185.45,185.41,0.72]
[1761842172972,5.54443767,185.44,185.4,25.98568335]
[1761842173270,5.54443767,185.44,185.4,21.312]
[1761842173770,5.54443767,185.44,185.41,0.72]
[1761842173954,5.54443767,185.44,185.4,26.70558922]
[1761842174275,5.54443767,185.44,185.41,0.72]
[1761842174564,5.54443767,185.44,185.4,25.98558922]
[1761842174744,5.54443767,185.44,185.4,26.70558922]
[1761842174944,16.72443767,185.45,185.41,0.72]
[1761842175362,14.8007427,185.45,185.41,0.72]
[1761842175552,11.18,185.45,185.41,0.72]
[1761842175746,11.18,185.45,185.41,6.26443767]
[1761842176067,16.72443767,185.45,185.41,0.72]
[1761842176247,16.72443767,185.45,185.42,0.71]
[1761842176786,5.54443767,185.43,185.4,20.592]
[1761842176963,16.57239063,185.45,185.37,20.592]
[1761842176964,5.54443767,185.41,185.37,20.592]
[1761842177158,0.6,185.44,185.36,0.71]
[1761842177159,5.54443767,185.39,185.36,0.71]
[1761842177353,5.54443767,185.4,185.36,0.71]
[1761842177682,16.72443767,185.41,185.37,20.592]
[1761842178064,16.72443767,185.41,185.37,21.302]
[1761842178677,5.54443767,185.4,185.37,20.592]
[1761842178882,5.54443767,185.38,185.34,0.71]
[1761842179181,11.18,185.41,185.34,0.71]
[1761842179367,14.8007427,185.43,185.38,5.54443767]
[1761842179573,3.6207427,185.45,185.42,5.54443767]
[1761842179788,16.72443767,185.48,185.42,5.54443767]
[1761842180081,11.18,185.48,185.4,20.592]
[1761842180286,5.54443767,185.45,185.4,26.84643767]
[1761842180485,5.54443767,185.45,185.41,0.71]
[1761842180663,5.54443767,185.46,185.42,5.39316147]
[1761842180858,5.54443767,185.47,185.43,0.71]
[1761842181481,10.93619189,185.47,185.43,0.71]
[1761842181680,5.54443767,185.46,185.43,0.71]
[1761842181984,9.15866978,185.47,185.43,0.71]
[1761842182185,5.54443767,185.47,185.43,0.71]
[1761842182765,16.72443767,185.48,185.43,6.10278085]
[1761842182964,3.61423211,185.5,185.44,5.54443767]
[1761842183262,16.72443767,185.49,185.44,0.71]
[1761842184590,5.54443767,185.48,185.44,0.71]
[1761842185086,10.93595322,185.48,185.44,0.71]
[1761842185291,10.93595322,185.48,185.42,67.0930902]
[1761842185292,5.54443767,185.47,185.42,67.0930902]
[1761842185493,5.54443767,185.47,185.42,67.8030902]
[1761842185678,5.54443767,185.47,185.43,0.71]
[1761842186461,10.93620161,185.47,185.43,0.71]
[1761842186667,5.54443767,185.46,185.43,0.71]
[1761842186972,5.54443767,185.47,185.43,6.10276243]
[1761842187469,5.54443767,185.47,185.43,0.71]
[1761842187680,5.54443767,185.47,185.41,10.93774641]
[1761842187887,20.33866978,185.49,185.44,6.25443767]
[1761842188090,16.72443767,185.49,185.44,6.25443767]
[1761842188294,16.72443767,185.49,185.45,0.71]
[1761842188591,16.72443767,185.49,185.45,6.10212922]
[1761842188784,16.72443767,185.49,185.46,0.71]
[1761842189092,11.18,185.49,185.46,0.71]
[1761842189676,11.18,185.49,185.44,6.25443767]
[1761842189991,5.54443767,185.45,185.4,82.292]
[1761842190290,5.54443767,185.45,185.4,88.54643767]
[1761842190589,10.93676387,185.45,185.41,0.71]
[1761842190889,5.54443767,185.43,185.38,61.7]
[1761842191094,5.54443767,185.43,185.38,5.39432516]
[1761842191261,5.54443767,185.44,185.39,0.71]
[1761842191463,11.16,185.45,185.41,5.54443767]
[1761842191667,11.16,185.45,185.42,0.71]
[1761842191870,10.93593105,185.48,185.42,6.25443767]
[1761842192086,11.16,185.48,185.43,5.54443767]
[1761842192286,11.16,185.48,185.43,6.25443767]
[1761842192490,11.16,185.48,185.44,6.10244464]
[1761842192697,11.16,185.48,185.45,5.54443767]
[1761842192904,5.54443767,185.5,185.46,0.71]
[1761842193070,16.70443767,185.51,185.46,0.71]
[1761842193876,5.54443767,185.49,185.44,5.39244464]
[1761842194104,5.54443767,185.47,185.43,83.002]
[1761842194478,5.54443767,185.47,185.43,88.3947523]
[1761842194666,5.54443767,185.47,185.43,87.6847523]
[1761842194996,5.54443767,185.47,185.4,61.7]
[1761842195195,20.592,185.49,185.4,61.7]
[1761842195196,5.54443767,185.45,185.4,61.7]
[1761842195502,5.54443767,185.45,185.41,0.71]
[1761842196369,5.54443767,185.46,185.41,0.71]
[1761842196566,10.93648071,185.46,185.41,6.10331036]
[1761842196965,10.93648071,185.46,185.41,67.09331036]
[1761842197200,10.93648071,185.46,185.42,0.71]
[1761842197494,10.93648071,185.46,185.41,5.39331036]
[1761842197799,5.54443767,185.45,185.41,6.10331036]
[1761842198093,5.39204304,185.46,185.4,61.7]
[1761842198094,10.93648071,185.46,185.42,6.10312321]
[1761842198293,10.93648071,185.46,185.42,0.71]
[1761842198602,5.54443767,185.45,185.41,5.39339639]
[1761842198809,5.54443767,185.43,185.4,61.7]
[1761842199022,5.54443767,185.43,185.39,61.7]
[1761842199226,5.54443767,185.41,185.39,61.7]
[1761842199521,11.16,185.43,185.35,0.68]
[1761842199686,5.54443767,185.41,185.37,0.68]
[1761842200008,5.54443767,185.42,185.37,0.68]
[1761842200193,11.16,185.43,185.38,10.93853815]
[1761842200394,16.55288145,185.43,185.39,0.68]
[1761842200785,3.61423211,185.45,185.4,5.54443767]
[1761842201008,16.72443767,185.46,185.4,5.54443767]
[1761842201196,22.11646029,185.46,185.41,6.22443767]
[1761842201394,3.61423211,185.47,185.42,26.13643767]
[1761842201596,9.0051037,185.5,185.44,5.54443767]
[1761842201785,5.54443767,185.49,185.44,5.54443767]
[1761842201982,17.98693375,185.52,185.42,31.772]
[1761842201983,3.61423211,185.51,185.46,5.54443767]
[1761842202300,5.54443767,185.51,185.47,5.39170755]
[1761842202502,10.93501551,185.51,185.47,5.39170755]
[1761842202803,5.54443767,185.52,185.48,0.68]
[1761842202992,0.6,185.57,185.5,26.13643767]
[1761842203187,5.54443767,185.56,185.51,5.54443767]
[1761842203394,5.54443767,185.56,185.5,26.13643767]
[1761842203687,5.54443767,185.56,185.5,20.592]
[1761842203892,5.54443767,185.55,185.5,20.592]
[1761842204094,5.54443767,185.55,185.5,26.66261379]
[1761842204694,11.53385245,185.55,185.5,20.592]
[1761842205013,5.54443767,185.52,185.48,5.3913538]
[1761842205313,5.54443767,185.52,185.48,16.5713538]
[1761842205807,6.14443767,185.52,185.47,11.18]
[1761842206012,5.54443767,185.52,185.46,26.13643767]
[1761842206198,5.54443767,185.52,185.47,5.39170755]
[1761842206808,5.54443767,185.52,185.47,6.07170755]
[1761842208714,0.6,185.51,185.38,16.20089104]
[1761842208900,5.54443767,185.39,185.31,0.68]
[1761842209203,11.22,185.44,185.32,11.9]
[1761842209402,5.54443767,185.43,185.38,20.592]
[1761842209607,4.02413586,185.42,185.39,0.68]
[1761842209801,4.02413586,185.41,185.39,0.68]
[1761842210106,5.54443767,185.43,185.39,0.68]
[1761842210300,3.61892489,185.46,185.39,0.68]
[1761842210301,4.02621912,185.42,185.39,0.68]
[1761842210509,5.54443767,185.44,185.39,0.68]
[1761842210705,4.02584421,185.43,185.39,0.68]
[1761842210893,4.02584421,185.43,185.39,6.07392932]
[1761842211290,4.02584421,185.43,185.4,0.68]
[1761842211518,3.61892489,185.46,185.41,11.24]
[1761842211519,4.02584421,185.42,185.41,11.24]